bitfinex/quotes_SOLUSD_20251216
["timestamp","ask_amount","ask_price","bid_price","bid_amount"]
[1765846786814,8.68,126.4,126.37,15.65718131]
[1765846787018,8.68,126.4,126.37,16.37718131]
[1765846787706,16.59141146,126.4,126.37,16.37718131]
[1765846788519,16.59079418,126.41,126.37,16.37718131]
[1765846789011,16.59079418,126.41,126.37,8.63299844]
[1765846789405,24.33497705,126.41,126.37,0.72]
[1765846789712,16.59079418,126.41,126.37,8.46418287]
[1765846790216,16.59079418,126.41,126.37,16.37708706]
[1765846790411,16.59079418,126.41,126.38,7.74418287]
[1765846790588,7.91079418,126.41,126.38,0.72]
[1765846790790,7.91079418,126.41,126.38,8.46418287]
[1765846791102,7.91079418,126.41,126.39,7.74418287]
[1765846791299,7.91079418,126.41,126.39,8.46418287]
[1765846791919,13.0470912,126.43,126.4,0.72]
[1765846792218,21.60686231,126.43,126.4,62.62]
[1765846792425,30.28686231,126.43,126.4,62.62]
[1765846792607,21.60686231,126.43,126.4,62.62]
[1765846792920,21.60686231,126.43,126.4,61.9]
[1765846793103,20.95686231,126.43,126.4,61.9]
[1765846793815,20.95686231,126.43,126.4,62.62]
[1765846794403,21.60686231,126.43,126.4,62.62]
[1765846796932,41.38065017,126.43,126.39,7.74418287]
[1765846797133,0.65,126.42,126.39,8.46418287]
[1765846797330,40.73065017,126.43,126.4,0.72]
[1765846797637,41.38065017,126.43,126.39,8.46418287]
[1765846798420,41.38065017,126.43,126.4,0.72]
[1765846799113,40.73065017,126.43,126.4,0.72]
[1765846799515,7.90919496,126.44,126.41,2.88917058]
[1765846799727,43.65219194,126.47,126.4,8.63133633]
[1765846799728,29.63472997,126.46,126.42,2.88917058]
[1765846800121,30.28472997,126.46,126.42,0.72]
[1765846800841,41.37382691,126.46,126.42,0.72]
[1765846801030,52.94204575,126.46,126.42,0.72]
[1765846801751,50.05382691,126.46,126.42,0.72]
[1765846801920,44.26204575,126.46,126.42,0.72]
[1765846802121,50.05382691,126.46,126.42,0.72]
[1765846802339,52.94204575,126.46,126.42,0.72]
[1765846802623,7.90763877,126.46,126.42,11.51831841]
[1765846802841,7.90638836,126.48,126.42,39.97367041]
[1765846803150,28.38235926,126.48,126.44,2.88821884]
[1765846803520,28.38235926,126.48,126.45,0.68]
[1765846804222,37.06235926,126.48,126.45,0.68]
[1765846804521,27.67235926,126.48,126.45,0.68]
[1765846805233,31.2705781,126.48,126.45,0.68]
[1765846806420,31.2705781,126.48,126.44,61.9]
[1765846806622,19.76966429,126.46,126.41,0.68]
[1765846806840,2.88821884,126.44,126.41,0.68]
[1765846807038,2.88821884,126.42,126.37,0.68]
[1765846807344,8.68,126.42,126.37,0.68]
[1765846807648,4.51629425,126.4,126.37,0.68]
[1765846807850,0.71,126.41,126.37,0.68]
[1765846808049,4.51629425,126.41,126.37,0.68]
[1765846808258,5.22629425,126.41,126.37,0.68]
[1765846808550,0.71,126.41,126.37,0.68]
[1765846808851,8.62097414,126.41,126.37,8.59307331]
[1765846809055,7.91097414,126.41,126.37,8.59307331]
[1765846809249,12.42726839,126.41,126.38,0.68]
[1765846809450,7.91097414,126.41,126.38,0.68]
[1765846810131,7.91097414,126.41,126.38,8.59259229]
[1765846810353,7.91097414,126.41,126.38,0.68]
[1765846810627,21.10609693,126.43,126.39,0.68]
[1765846810835,21.81609693,126.43,126.39,0.68]
[1765846811232,34.86318813,126.43,126.39,0.68]
[1765846811647,30.34689388,126.43,126.39,5.19629425]
[1765846812037,30.34689388,126.43,126.4,0.68]
[1765846812637,7.90980268,126.43,126.4,0.68]
[1765846813044,8.61980268,126.43,126.4,0.68]
[1765846814035,8.61980268,126.43,126.4,8.59137013]
[1765846816347,13.13441707,126.43,126.4,0.68]
[1765846816867,13.13441707,126.43,126.4,62.58]
[1765846817245,8.61980268,126.43,126.4,62.58]
[1765846818971,13.13441707,126.43,126.4,62.58]
[1765846819286,8.61980268,126.43,126.4,62.58]
[1765846819565,7.90980268,126.43,126.4,62.58]
[1765846819772,7.90980268,126.43,126.41,0.68]
[1765846821867,7.90980268,126.43,126.4,61.9]
[1765846822047,8.61980268,126.43,126.4,62.58]
[1765846822650,13.13441707,126.43,126.4,61.9]
[1765846822850,8.68,126.42,126.4,61.9]
[1765846823364,16.59016033,126.42,126.4,62.58]
[1765846823665,5.22461439,126.41,126.4,61.9]
[1765846825573,13.13538094,126.41,126.4,61.9]
[1765846826656,32.91229732,126.41,126.35,7.91416993]
[1765846826863,4.51461439,126.39,126.35,28.3804778]
[1765846827063,4.51461439,126.39,126.36,0.68]
[1765846827262,8.68,126.4,126.36,0.68]
[1765846827476,4.51461439,126.39,126.36,8.59336866]
[1765846827675,21.10616539,126.4,126.36,8.59336866]
[1765846827848,21.10616539,126.4,126.37,0.68]
[1765846828952,12.42663772,126.39,126.37,0.68]
[1765846829678,4.51461439,126.38,126.37,0.68]
[1765846830170,4.51461439,126.38,126.34,7.91514959]
[1765846830356,4.51461439,126.37,126.34,70.49514959]
[1765846830550,4.51461439,126.37,126.35,0.68]
[1765846830753,16.59285531,126.38,126.35,0.68]
[1765846830969,5.22461439,126.38,126.35,0.68]
[1765846831166,4.51461439,126.37,126.35,0.68]
[1765846832074,13.13731871,126.38,126.35,8.594469]
[1765846832774,8.68,126.39,126.36,0.7]
[1765846833461,13.19461439,126.39,126.36,0.7]
[1765846833663,8.68,126.39,126.36,0.7]
[1765846833861,13.19461439,126.39,126.36,0.7]
[1765846834073,21.10691763,126.39,126.36,0.7]
[1765846834286,4.51461439,126.38,126.36,0.7]
[1765846835358,16.59230324,126.39,126.36,0.7]
[1765846835561,12.42734408,126.38,126.36,0.7]
[1765846835768,4.51461439,126.37,126.34,8.61484354]
[1765846835951,8.60272969,126.38,126.34,8.61484354]
[1765846836281,4.51461439,126.36,126.34,8.61484354]
[1765846838079,4.51461439,126.36,126.34,7.91484354]
[1765846838584,4.51461439,126.35,126.34,61.4]
[1765846838787,4.51461439,126.35,126.33,7.91554324]
[1765846839488,4.51461439,126.35,126.32,7.91640278]
[1765846839786,4.51461439,126.34,126.31,7.91670892]
[1765846839976,4.51461439,126.34,126.31,69.81670892]
[1765846840280,8.60458864,126.35,126.32,0.7]
[1765846840281,4.51461439,126.33,126.32,0.7]
[1765846840481,4.51461439,126.33,126.3,7.91749855]
[1765846840678,4.51461439,126.31,126.28,70.51855759]
[1765846840880,4.51461439,126.31,126.29,7.91822367]
[1765846841583,8.68,126.34,126.3,0.7]
[1765846841767,8.60458864,126.35,126.3,0.7]
[1765846841968,4.51461439,126.33,126.3,0.7]
[1765846842689,4.51461439,126.32,126.3,0.7]
[1765846842893,4.51461439,126.31,126.3,0.7]
[1765846843478,5.20461439,126.31,126.28,7.91857918]
[1765846843788,4.51461439,126.3,126.28,8.61857918]
[1765846843985,4.51461439,126.31,126.29,8.61828331]
[1765846844793,4.51461439,126.32,126.29,8.61828331]
[1765846844978,4.51461439,126.31,126.29,8.61828331]
[1765846845173,0.69,126.32,126.29,8.61828331]
[1765846845365,5.20461439,126.32,126.29,8.61828331]
[1765846846168,7.91603591,126.33,126.29,0.7]
[1765846846372,8.68,126.34,126.3,0.7]
[1765846846691,13.88461439,126.34,126.3,0.7]
[1765846847100,13.88461439,126.34,126.3,8.61728273]
[1765846847401,21.79976936,126.34,126.3,8.61728273]
[1765846847698,13.88461439,126.34,126.31,0.7]
[1765846847991,4.51461439,126.33,126.31,0.7]
[1765846848681,5.20461439,126.32,126.28,7.91852333]
[1765846848878,4.51461439,126.31,126.28,8.61852333]
[1765846849394,8.60662445,126.32,126.28,8.61852333]
[1765846849719,8.60662445,126.32,126.26,19.79961642]
[1765846849720,4.51461439,126.29,126.26,19.79961642]
[1765846849998,4.51461439,126.31,126.28,28.41618624]
[1765846850186,13.7370912,126.33,126.28,28.41618624]
[1765846850375,4.51461439,126.32,126.29,0.7]
[1765846851191,7.91542374,126.34,126.29,8.61819043]
[1765846851494,12.43003813,126.34,126.29,8.61819043]
[1765846851702,4.51461439,126.34,126.3,0.7]
[1765846851902,4.51461439,126.35,126.3,0.7]
[1765846852288,13.11853092,126.36,126.3,13.89461439]
[1765846852492,12.42853092,126.36,126.3,13.89461439]
[1765846852671,7.91391653,126.36,126.31,0.7]
[1765846852874,12.42853092,126.36,126.32,7.91640278]
[1765846853115,0.69,126.36,126.32,7.91640278]
[1765846853316,4.51461439,126.36,126.33,0.7]
[1765846853617,0.69,126.36,126.33,0.7]
[1765846853775,5.20461439,126.36,126.33,0.7]
[1765846854177,5.20461439,126.36,126.32,8.61640278]
[1765846854388,5.20461439,126.36,126.33,0.7]
[1765846855199,13.11865587,126.36,126.33,0.7]
[1765846855503,4.51461439,126.35,126.32,7.91640278]
[1765846855682,4.51461439,126.34,126.32,0.7]
[1765846855878,4.51461439,126.34,126.3,16.59748127]
[1765846856085,5.20461439,126.33,126.3,0.7]
[1765846856308,4.51461439,126.32,126.3,0.7]
[1765846858798,16.59619573,126.33,126.3,0.7]
[1765846859002,21.11081012,126.33,126.3,0.7]
[1765846859301,13.19461439,126.34,126.3,70.51742774]
[1765846859679,13.19461439,126.34,126.31,0.7]
[1765846859879,8.68,126.34,126.31,0.7]
[1765846860080,13.19461439,126.34,126.31,0.7]
[1765846860281,12.42880302,126.36,126.32,7.91640278]
[1765846860602,21.79880302,126.36,126.33,0.7]
[1765846861192,4.51461439,126.34,126.31,0.7]
[1765846861398,4.51461439,126.33,126.31,0.7]
[1765846861605,0.69,126.35,126.31,0.7]
[1765846861906,4.51461439,126.34,126.31,0.7]
[1765846862296,5.19461439,126.34,126.31,8.61696817]
[1765846862697,4.51461439,126.33,126.3,0.68]
[1765846863587,4.51461439,126.33,126.3,8.59763006]
[1765846863818,4.51461439,126.32,126.3,0.68]
[1765846864792,8.59582561,126.33,126.3,0.68]
[1765846864793,13.11044,126.33,126.3,0.68]
[1765846866120,28.46787399,126.34,126.3,0.68]
[1765846866121,8.68,126.34,126.3,8.59763011]
[1765846866416,4.51461439,126.34,126.31,0.68]
[1765846866620,5.19461439,126.34,126.31,8.59662432]
[1765846867217,4.10144292,126.38,126.32,0.68]
[1765846867424,5.19461439,126.38,126.32,0.68]
[1765846867716,4.51461439,126.35,126.32,0.68]
[1765846868302,4.51461439,126.36,126.32,0.68]
[1765846868519,12.42856385,126.36,126.32,8.59585208]
[1765846868809,4.51461439,126.36,126.33,0.68]
[1765846869203,4.51461439,126.37,126.33,0.68]
[1765846869431,2.89229519,126.37,126.33,0.68]
[1765846869630,2.89229519,126.38,126.33,0.68]
[1765846869925,2.89229519,126.36,126.33,0.68]
[1765846870296,0.68,126.37,126.33,0.68]
[1765846870498,2.89229519,126.36,126.34,7.91514959]
[1765846870714,2.89229519,126.35,126.31,0.68]
[1765846870906,2.89229519,126.34,126.31,8.59667178]
[1765846871109,3.57229519,126.34,126.31,8.59667178]
[1765846871416,2.89229519,126.34,126.31,8.59667178]
[1765846871590,0.68,126.35,126.31,8.59667178]
[1765846871796,2.89229519,126.34,126.31,8.59667178]
[1765846872192,2.89229519,126.33,126.31,62.58]
[1765846872416,2.89229519,126.32,126.31,61.9]
[1765846872605,11.48820604,126.33,126.29,70.49783959]
[1765846872922,0.68,126.33,126.3,7.9173446]
[1765846873101,0.68,126.34,126.31,7.91683967]
[1765846873421,19.48690043,126.35,126.31,8.59683967]
[1765846873622,2.89229519,126.33,126.3,61.9]
[1765846873795,2.89229519,126.33,126.3,62.58]
[1765846874121,2.89229519,126.33,126.3,61.9]
[1765846874295,3.57229519,126.34,126.31,0.68]
[1765846874911,3.57229519,126.34,126.31,8.59701206]
[1765846875110,2.89229519,126.32,126.3,61.9]
[1765846875417,2.89229519,126.32,126.3,0.68]
[1765846875620,3.57229519,126.33,126.3,0.68]
[1765846876541,3.57229519,126.32,126.28,7.91848613]
[1765846876831,11.48870055,126.32,126.28,8.59891035]
[1765846877299,10.48870055,126.32,126.28,8.59891035]
[1765846877709,8.59640536,126.32,126.28,8.59891035]
[1765846878044,11.48870055,126.32,126.29,8.59821205]
[1765846878529,3.57229519,126.31,126.28,7.91851933]
[1765846879338,3.57229519,126.31,126.27,0.68]
[1765846879339,0.68,126.31,126.27,0.68]
[1765846879498,2.89229519,126.3,126.27,70.49902503]
[1765846879694,2.89229519,126.3,126.28,7.9188802]
[1765846879920,2.89229519,126.31,126.28,0.68]
[1765846880109,2.89229519,126.31,126.29,0.68]
[1765846880505,0.68,126.32,126.29,0.68]
[1765846880709,2.89229519,126.32,126.29,0.68]
[1765846881319,17.2759136,126.33,126.27,69.81939469]
[1765846881320,2.89229519,126.3,126.27,69.81939469]
[1765846881627,0.68,126.31,126.27,70.49939469]
[1765846881825,2.89229519,126.3,126.27,70.49939469]
[1765846882240,10.81009588,126.3,126.27,61.9]
[1765846882542,3.57229519,126.29,126.27,61.9]
[1765846882907,2.89229519,126.29,126.27,62.58]
[1765846883351,17.27780069,126.3,126.27,62.58]
[1765846883525,11.57229519,126.3,126.27,70.49949942]
[1765846883945,8.59602931,126.33,126.28,0.68]
[1765846884148,2.89229519,126.32,126.28,7.918355]
[1765846884327,2.89229519,126.3,126.26,0.68]
[1765846884532,2.89229519,126.3,126.28,7.91883349]
[1765846884835,12.25229519,126.31,126.28,8.59883349]
[1765846885044,2.89494488,126.3,126.26,7.91959546]
[1765846885242,2.89494488,126.3,126.27,0.68]
[1765846885451,2.89494488,126.3,126.27,8.59949603]
[1765846885926,12.25494488,126.31,126.28,8.59873927]
[1765846886132,12.25494488,126.31,126.28,0.68]
[1765846886860,20.17205206,126.31,126.28,0.68]
[1765846888148,2.89494488,126.3,126.27,0.68]
[1765846888319,2.89494488,126.29,126.27,0.68]
[1765846889152,8.59770096,126.3,126.27,0.68]
[1765846889330,2.89494488,126.29,126.27,0.68]
[1765846889531,3.57494488,126.29,126.26,8.60005435]
[1765846890226,2.89494488,126.29,126.26,8.60005435]
[1765846890828,2.89494488,126.27,126.24,62.68]
[1765846891026,2.89494488,126.26,126.24,0.1]
[1765846891226,2.89494488,126.25,126.24,0.1]
[1765846891855,3.58494488,126.25,126.24,0.1]
[1765846892244,0.69,126.25,126.24,0.1]
[1765846892432,2.89494488,126.26,126.24,0.1]
[1765846892634,22.68963764,126.3,126.24,62.66]
[1765846892635,3.56494488,126.29,126.24,62.66]
[1765846892836,2.89494488,126.29,126.24,0.76]
[1765846893027,2.89494488,126.29,126.25,0.66]
[1765846893234,2.89494488,126.28,126.25,8.58024406]
[1765846893556,3.56494488,126.29,126.25,8.58024406]
[1765846893748,11.48343591,126.29,126.25,8.58024406]
[1765846893946,11.48343591,126.29,126.25,7.92024406]
[1765846894152,11.48343591,126.29,126.26,0.66]
[1765846895162,20.16197441,126.31,126.26,0.66]
[1765846895356,20.16197441,126.31,126.27,7.91953749]
[1765846895555,7.91653159,126.32,126.28,0.66]
[1765846895856,19.49147647,126.32,126.28,0.66]
[1765846896064,0.67,126.31,126.28,0.66]
[1765846896762,19.78835399,126.34,126.28,0.66]
[1765846896763,2.89494488,126.35,126.29,11.7048898]
[1765846897065,2.89494488,126.35,126.29,73.6048898]
[1765846897266,2.89494488,126.35,126.3,0.66]
[1765846897440,2.89494488,126.35,126.31,27.70960335]
[1765846897772,3.56494488,126.35,126.31,27.70960335]
[1765846897957,3.56494488,126.35,126.31,28.36960335]
[1765846898134,20.96023517,126.38,126.32,0.66]
[1765846898340,2.89494488,126.38,126.33,8.68]
[1765846898658,3.56494488,126.41,126.35,2.89494488]
[1765846898851,3.56494488,126.41,126.36,8.68]
[1765846899057,8.57993198,126.43,126.36,12.23494488]
[1765846899238,12.24494488,126.43,126.37,0.66]
[1765846899434,3.56494488,126.43,126.38,7.9126444]
[1765846899643,2.89494488,126.43,126.39,0.66]
[1765846899845,11.47383672,126.44,126.39,0.66]
[1765846900357,3.56494488,126.44,126.39,0.66]
[1765846900540,0.67,126.44,126.39,0.66]
[1765846900860,3.56494488,126.44,126.39,9.34]
[1765846901359,8.40853998,126.44,126.4,8.57097234]
[1765846901557,0.67,126.43,126.39,16.59192283]
[1765846901883,7.73853998,126.42,126.39,9.34]
[1765846902237,7.90899002,126.44,126.4,8.57134598]
[1765846902433,7.73853998,126.43,126.4,8.57134598]
[1765846902662,8.40853998,126.43,126.4,0.66]
[1765846903556,16.31814007,126.43,126.4,0.66]
[1765846903860,7.73853998,126.43,126.4,8.57137297]
[1765846904062,7.73853998,126.44,126.4,8.57137297]
[1765846904369,8.40853998,126.44,126.4,8.57137297]
[1765846905166,7.73853998,126.44,126.41,0.66]
[1765846905363,8.40853998,126.44,126.41,0.66]
[1765846905768,7.73853998,126.45,126.41,8.57035958]
[1765846905976,29.36352699,126.46,126.41,8.57035958]
[1765846906144,29.36352699,126.46,126.42,0.66]
[1765846906347,13.0470912,126.46,126.42,0.66]
[1765846906669,0.2,126.47,126.42,9.34]
[1765846906990,16.51588964,126.47,126.42,9.34]
[1765846907154,0.2,126.47,126.43,0.66]
[1765846907342,0.2,126.47,126.43,17.2084849]
[1765846907761,0.2,126.47,126.45,7.90826413]
[1765846908150,0.2,126.47,126.45,8.56826413]
[1765846908356,0.2,126.47,126.46,0.66]
[1765846909583,0.2,126.47,126.46,17.2084849]
[1765846909868,0.2,126.47,126.46,25.11612367]
[1765846910446,0.2,126.49,126.47,8.80994492]
[1765846910765,0.2,126.49,126.48,17.07853998]
[1765846910979,0.2,126.49,126.48,9.34]
[1765846911749,0.2,126.49,126.48,8.68]
[1765846912068,0.2,126.49,126.47,8.56671517]
[1765846912271,0.2,126.49,126.48,7.90638836]
[1765846912484,0.2,126.49,126.48,8.56638836]
[1765846913460,0.2,126.49,126.48,16.30492834]
[1765846913654,0.2,126.49,126.48,8.56638836]
[1765846916774,0.2,126.49,126.48,0.66]
[1765846917171,0.2,126.49,126.48,8.56638836]
[1765846917977,0.2,126.49,126.48,16.30492834]
[1765846918973,0.2,126.49,126.48,25.11487326]
[1765846919179,0.2,126.49,126.48,33.79487326]
[1765846919994,0.2,126.54,126.48,93.09278596]
[1765846920203,0.2,126.54,126.52,7.73853998]
[1765846920358,0.2,126.54,126.53,16.5484849]
[1765846920557,0.2,126.55,126.53,17.2084849]
[1765846920766,0.2,126.55,126.53,8.68]
[1765846921080,0.2,126.55,126.53,16.41853998]
[1765846921288,0.2,126.56,126.55,8.80994492]
[1765846921473,0.2,126.56,126.55,33.13049991]
[1765846921674,7.89722933,126.63,126.55,53.54553744]
[1765846921879,0.67,126.62,126.58,7.73853998]
[1765846922078,0.67,126.62,126.58,16.41853998]
[1765846922278,0.67,126.62,126.58,17.07853998]
[1765846922483,0.67,126.62,126.58,9.34]
[1765846923486,0.67,126.62,126.6,7.89889415]
[1765846923692,0.67,126.62,126.58,8.68]
[1765846923987,7.73853998,126.61,126.58,16.579685]
[1765846924189,8.5677242,126.62,126.58,16.579685]
[1765846924190,16.30626418,126.62,126.59,7.89951113]
[1765846924401,0.71,126.61,126.58,16.57989319]
[1765846924964,0.71,126.61,126.59,7.89950173]
[1765846925272,0.71,126.61,126.58,16.57987486]
[1765846925797,7.73853998,126.64,126.59,0.66]
[1765846926001,0.71,126.63,126.59,8.39853998]
[1765846926477,0.71,126.65,126.61,7.73853998]
[1765846926685,0.71,126.65,126.61,16.39853998]
[1765846926898,0.71,126.65,126.61,17.05853998]
[1765846927088,0.71,126.65,126.61,16.39853998]
[1765846927390,0.71,126.65,126.62,0.66]
[1765846927698,0.91,126.67,126.63,15.6355628]
[1765846927865,0.2,126.67,126.64,8.66]
[1765846928173,0.91,126.67,126.64,8.66]
[1765846928379,0.2,126.67,126.64,9.32]
[1765846928599,0.71,126.66,126.64,8.66]
[1765846929091,7.73853998,126.65,126.61,8.66]
[1765846929396,12.5372313,126.63,126.59,28.40791219]
[1765846929593,7.89639924,126.64,126.6,7.89889415]
[1765846929781,0.71,126.63,126.6,7.89889415]
[1765846930189,12.5372313,126.62,126.59,7.8993275]
[1765846930378,0.71,126.63,126.58,7.90003167]
[1765846930379,12.5372313,126.61,126.58,7.90003167]
[1765846930584,13.2472313,126.62,126.58,7.90003167]
[1765846930792,12.5372313,126.62,126.58,7.90003167]
[1765846931094,0.71,126.61,126.58,7.90003167]
[1765846932188,0.71,126.62,126.58,28.31038717]
[1765846932380,0.71,126.61,126.58,28.31038717]
[1765846932582,0.71,126.64,126.58,40.84761847]
[1765846932897,0.71,126.64,126.6,21.34717622]
[1765846933405,0.71,126.65,126.61,13.1972313]
[1765846933597,0.71,126.65,126.63,7.89702282]
[1765846933803,0.71,126.65,126.62,16.55740659]
[1765846935283,0.71,126.65,126.59,19.74777654]
[1765846935284,12.5372313,126.63,126.59,19.74777654]
[1765846935473,12.5372313,126.63,126.59,28.40777654]
[1765846935676,0.71,126.62,126.6,7.89889415]
[1765846935889,0.71,126.63,126.6,7.89889415]
[1765846936399,13.2472313,126.65,126.61,9.46994492]
[1765846936577,0.71,126.65,126.61,9.46994492]
[1765846936778,0.71,126.65,126.62,0.66]
[1765846937585,0.71,126.65,126.62,9.32]
[1765846937787,0.71,126.65,126.63,7.89702282]
[1765846938183,0.91,126.67,126.63,21.09425412]
[1765846938383,0.91,126.67,126.63,28.29957987]
[1765846939003,0.91,126.67,126.64,8.80994492]
[1765846939200,0.91,126.67,126.63,28.29957987]
[1765846939501,13.4472313,126.67,126.63,28.29957987]
[1765846940016,0.91,126.67,126.63,28.29957987]
[1765846940178,13.4472313,126.67,126.63,28.29957987]
[1765846940520,13.2472313,126.66,126.63,7.89702282]
[1765846940683,0.71,126.65,126.63,7.89702282]
[1765846941105,13.2472313,126.65,126.62,16.55738573]
[1765846941619,13.2472313,126.65,126.63,7.89691927]
[1765846941788,0.71,126.65,126.63,7.89691927]
[1765846941986,13.4472313,126.67,126.63,7.89691927]
[1765846942302,0.71,126.66,126.63,7.89691927]
[1765846942608,13.2472313,126.66,126.63,7.89691927]
[1765846942804,13.2472313,126.66,126.62,16.55755766]
[1765846943008,13.2472313,126.65,126.62,16.55755766]
[1765846943228,0.71,126.65,126.62,16.55755766]
[1765846943996,0.2,126.67,126.63,0.66]
[1765846944194,0.2,126.67,126.64,8.66]
[1765846944698,0.2,126.67,126.65,0.66]
[1765846945106,0.2,126.67,126.66,17.46994492]
[1765846945416,0.2,126.67,126.66,30.00717622]
[1765846945626,0.2,126.67,126.66,30.66717622]
[1765846945826,0.2,126.68,126.66,30.66717622]
[1765846946029,0.2,126.68,126.67,21.09176039]
[1765846946330,0.2,126.68,126.67,17.36447401]
[1765846946528,0.2,126.68,126.66,7.89477523]
[1765846946842,12.5372313,126.67,126.63,17.46994492]
[1765846947115,12.5372313,126.66,126.63,16.55679997]
[1765846947645,13.2472313,126.66,126.63,16.55679997]
[1765846948207,0.2,126.68,126.63,36.29935702]
[1765846948414,13.4472313,126.68,126.64,0.66]
[1765846948813,0.71,126.67,126.63,36.29935702]
[1765846949019,12.5372313,126.66,126.63,16.55679997]
[1765846949409,0.71,126.65,126.63,16.55679997]
[1765846949609,12.5372313,126.66,126.63,16.55679997]
[1765846950219,13.2472313,126.66,126.63,16.55679997]
[1765846950510,0.71,126.66,126.63,36.29935702]
[1765846950830,12.7372313,126.68,126.63,36.29935702]
[1765846951005,0.2,126.68,126.64,0.66]
[1765846951205,0.2,126.68,126.66,8.80994492]
[1765846951417,0.2,126.68,126.66,9.46994492]
[1765846951933,0.2,126.68,126.65,8.66]
[1765846952223,13.4272313,126.68,126.65,16.55527995]
[1765846953708,0.89,126.68,126.65,16.55527995]
[1765846953909,13.4272313,126.68,126.65,16.55527995]
[1765846954107,12.5372313,126.66,126.64,7.89580637]
[1765846954729,0.69,126.65,126.63,16.55678114]
[1765846955534,0.69,126.65,126.63,8.66]
[1765846955725,0.69,126.65,126.64,7.89639924]
[1765846956113,13.22189393,126.67,126.64,7.89639924]
[1765846956544,0.69,126.66,126.64,7.89639924]
[1765846957721,0.89,126.68,126.64,7.89639924]
[1765846957928,0.89,126.68,126.64,40.88929127]
[1765846958124,0.39,126.68,126.65,8.66]
[1765846958338,0.39,126.68,126.65,9.38]
[1765846959456,12.73189393,126.69,126.66,7.89515237]
[1765846960148,0.69,126.68,126.66,7.89515237]
[1765846960754,12.73189393,126.69,126.66,7.89515237]
[1765846961053,0.2,126.69,126.66,28.35303331]
[1765846961274,0.2,126.69,126.68,21.34183885]
[1765846961550,0.2,126.69,126.68,29.23574475]
[1765846961754,0.2,126.69,126.68,29.95574475]
[1765846962961,0.2,126.71,126.69,8.80994492]
[1765846963263,0.2,126.71,126.69,9.52994492]
[1765846963468,0.2,126.71,126.7,17.27265982]
[1765846963655,0.2,126.71,126.7,26.08260474]
[1765846964030,0.2,126.71,126.7,17.27265982]
[1765846965033,0.69,126.76,126.71,8.80994492]
[1765846965232,0.69,126.75,126.72,8.66]
[1765846965444,13.22189393,126.75,126.72,8.66]
[1765846965647,0.69,126.75,126.7,36.28430938]
[1765846965850,13.22189393,126.74,126.7,37.00430938]
[1765846966735,0.69,126.74,126.7,37.00430938]
[1765846966966,0.69,126.74,126.7,49.53620331]
[1765846967265,12.53189393,126.75,126.71,9.52994492]
[1765846967465,13.22189393,126.75,126.71,9.52994492]
[1765846968371,13.22189393,126.77,126.72,30.72183885]
[1765846968669,13.0470912,126.78,126.72,18.18994492]
[1765846968970,13.7370912,126.78,126.74,12.53189393]
[1765846969149,26.26898513,126.78,126.74,8.66]
[1765846969349,0.69,126.77,126.74,8.66]
[1765846969954,0.69,126.77,126.73,16.55079144]
[1765846970155,0.2,126.81,126.74,9.52994492]
[1765846970467,0.69,126.78,126.74,22.06183885]
[1765846970962,21.10960336,126.78,126.73,16.55078514]
[1765846971158,12.53189393,126.76,126.73,8.66]
[1765846971358,0.69,126.77,126.74,7.89007756]
[1765846971759,13.22189393,126.77,126.74,7.89007756]
[1765846972174,0.69,126.77,126.74,8.61007756]
[1765846972554,0.69,126.77,126.74,7.89007756]
[1765846972764,0.69,126.77,126.73,16.55055177]
[1765846973067,13.22189393,126.77,126.73,16.55055177]
[1765846973269,21.11029584,126.77,126.73,16.55055177]
[1765846973454,0.69,126.76,126.73,16.55055177]
[1765846973766,13.22189393,126.76,126.72,16.70098129]
[1765846973969,12.53189393,126.75,126.72,7.89103637]
[1765846974153,13.22189393,126.75,126.72,7.89103637]
[1765846974347,0.69,126.74,126.72,7.89103637]
[1765846975181,21.11206604,126.74,126.71,7.89174415]